Cogmind - Beta 14 @@@ ROGUE MODE // 2024.08.07 @ 23:58:25 Player: HybriD Result: Destroyed by H-66 Slayer with Heavy Assault Rifle Performance ------------- Evolutions (1) 500 Regions Visited (6) 1200 Robots Destroyed (28) 140 Value Destroyed (966) 966 Prototype IDs (7) 140 Alien Tech Used (0) 0 Bonus (958) 958 TOTAL SCORE: 3904 Bonus ------- Follower Combat Kills 369 Met Imprinter 300 Was Imprinted 300 Friendly Fire -11 Cogmind --------- Core Integrity 0/400 Matter 300/300 Energy 100/100 System Corruption 0% Temperature Cool (0) Movement Walking (120) Location -6/Proximity Caves Parts ------- > --- POWER (1) -------- (None) > --- PROPULSION (3) --- Aluminum Leg > --- UTILITY (3) ------ Improved Targeting Computer Experimental Armor Integrity Analyzer > --- WEAPON (2) ------- (None) > --- INVENTORY (5) ---- Medium Treads Advanced Heat Sink Improved Cooling System Makeshift Utility Shielding Advanced Hacking Suite Peak State ------------ > --- POWER ------------ Nuclear Core > --- PROPULSION ------- Wheel Armored Huge Wheel > --- UTILITY ---------- Small Storage Unit Improved Targeting Computer Experimental Armor Integrity Analyzer > --- WEAPON ----------- Barrage Gun Bore Cannon > --- INVENTORY -------- Nuclear Core Aluminum Leg Aluminum Leg Improved Heat Sink Makeshift Utility Shielding Hardened Light Armor Plating Advanced Hacking Suite Pulse Rifle [Rating: 35] Favorites ----------- Power Nuclear Core Engine Ion Engine Power Core Nuclear Core Propulsion Aluminum Leg Leg Aluminum Leg Wheel Compact Wheel Utility Small Storage Unit Device Improved Heat Sink Storage Small Storage Unit Processor Experimental Armor Integrity Analyzer Protection Makeshift Utility Shielding Weapon Assault Rifle Energy Gun Pulse Rifle Ballistic Gun Assault Rifle Ballistic Cannon Battle Cannon Special Weapon Enhanced Flamer Build | -11 -10 -10 -9 -9 -7 -6 ------- Run | Yrd Mat Min Mat Min Zio Pro Slots Evolved 2 | . . . 2 . . . Power . | . . . . . . . Propulsion 1 | . . . 1 . . . Utility 1 | . . . 1 . . . Weapon . | . . . . . . . Parts Attached 53 | 7 8 6 6 1 17 8 Power 7 | 2 1 1 1 . . 2 Engine 5 | 2 1 1 . . . 1 Core 2 | . . . 1 . . 1 Reactor . | . . . . . . . Propulsion 16 | 2 3 1 2 . 4 4 Treads . | . . . . . . . Leg 10 | . 1 1 2 . 2 4 Wheel 6 | 2 2 . . . 2 . Hover . | . . . . . . . Flight . | . . . . . . . Utility 16 | 1 2 1 1 1 10 . Device 4 | . 2 . 1 1 . . Storage 2 | 1 . . . . 1 . Processor 7 | . . . . . 7 . Hackware . | . . . . . . . Protection 3 | . . 1 . . 2 . Artifact . | . . . . . . . Weapon 14 | 2 2 3 2 . 3 2 Energy Gun 3 | . 1 1 1 . . . Energy Cannon . | . . . . . . . Ballistic Gun 6 | 2 1 1 1 . 1 . Ballistic Cannon 3 | . . . . . 2 1 Launcher . | . . . . . . . Special Weapon 2 | . . 1 . . . 1 Impact Weapon . | . . . . . . . Slashing Weapon . | . . . . . . . Piercing Weapon . | . . . . . . . Special Melee Weapon . | . . . . . . . Unidentified Prototypes 5 | . . . . . 5 . Parts Lost 15 | . 2 2 . . . 11 Power 1 | . . . . . . 1 Propulsion 7 | . 1 1 . . . 5 Utility 1 | . . . . . . 1 Weapon 6 | . 1 1 . . . 4 Highest Loss Streak 4 | . 2 1 . . . 4 To Critical Strikes . | . . . . . . . Average Slot Usage (%) 92 | . 97 99 92 100 93 82 Engine 4 | . 14 14 1 . . 4 Core 6 | . . . 9 11 11 6 Leg 15 | . 3 14 27 33 16 14 Wheel 10 | . 22 13 . . 11 8 Device 5 | . 13 6 9 11 4 . Storage 11 | . 14 14 11 11 11 10 Processor 10 | . . . . . 13 22 Protection 3 | . . 7 11 11 4 . Energy Gun 5 | . 4 14 11 11 6 . Ballistic Gun 10 | . 23 13 11 11 11 3 Ballistic Cannon 4 | . . . . . 4 9 Peak Build Rating 35 | 6 8 11 19 19 35 34 Average Rating 21 | 4 7 8 17 19 26 30 On Entrance 13 | . 6 8 9 19 19 32 Naked Turns . | . . . . . . . Heaviest Build 29 | 13 15 15 19 19 24 29 Greatest Support 38 | 32 32 16 30 30 38 38 Greatest Overweight (x) 1 | . . 1 1 . 1 1 Average Overweight (x) . | . . . . . . . Largest Inventory Capacity 8 | 8 8 8 8 8 8 8 Average Capacity 7 | 6 8 8 8 8 7 7 Most Carried 8 | 4 8 8 8 8 8 8 Average Carried 7 | 2 5 6 6 7 7 7 Final Capacity 8 | 8 8 8 8 8 8 5 Final Carried 8 | 4 6 6 8 8 8 5 Class Distribution -------------------- 69% | Mutant 21% | Derelict-Mutant 8% | Scavenger-Mutant Dominant Class ---------------- Mutant | -10/Materials Mutant | -10/Mines Mutant | -9/Materials Mutant | -9/Mines Mutant | -7/Zion Mutant | -6/Proximity Caves Resources | -11 -10 -10 -9 -9 -7 -6 ----------- Run | Yrd Mat Min Mat Min Zio Pro Matter Collected 1199 | 201 202 92 96 16 147 445 Remotely . | . . . . . . . Salvage Created 1024 | . 238 80 178 . . 528 Parts 50 | . 11 4 13 . . 22 Haulers Intercepted . | . . . . . . . Recyclers Shooed 1 | . 1 . . . . . Parts Field Recycled . | . . . . . . . Retrieved Matter . | . . . . . . . Parts Self-Destructed 34 | . . . . . . 34 Prevented . | . . . . . . . Kills | -11 -10 -10 -9 -9 -7 -6 ------- Run | Yrd Mat Min Mat Min Zio Pro Combat Hostiles Destroyed 27 | . 6 2 6 . . 13 Guns 18 | . 5 2 6 . . 5 Cannons 8 | . . . . . . 8 Classes Destroyed 6 | . 1 1 2 . . 2 Tunneler 1 | . . 1 . . . . Drone 1 | . . . . . . 1 Swarmer 7 | . . . 3 . . 4 Grunt 16 | . 6 2 2 . . 6 Brawler 2 | . . . . . . 2 Sentry 1 | . . . 1 . . . Best Kill Streak 6 | . 2 2 6 . . 3 Combat Bots Only 6 | . 2 2 6 . . 3 Max Kills in Single Turn 1 | . 1 1 1 . . 1 Gunslinging . | . . . . . . . Exploded . | . . . . . . . Melee . | . . . . . . . Uniques/NPCs Destroyed . | . . . . . . . Combat | -11 -10 -10 -9 -9 -7 -6 -------- Run | Yrd Mat Min Mat Min Zio Pro Hostile Shots Fired 234 | . 31 38 18 4 . 143 Missed 71 | . 3 7 4 2 . 55 Damage Taken 2600 | . 354 393 158 21 . 1674 Core 652 | . 105 140 24 . . 383 Absorbed by Shields . | . . . . . . . Redirected to Shielding 3 | . . . 2 1 . . Regen/Repaired (Parts) 23 | . 23 . . . . . Core Remaining (%) 51 | 100 . 2 . . . . Volleys Fired 113 | . 28 24 14 3 . 44 Largest 2 | . 2 2 2 2 . 2 Hottest 100 | . 85 100 83 83 . 85 Shots Fired 202 | . 56 43 27 6 . 70 Gun 155 | . 56 40 27 6 . 26 Cannon 44 | . . . . . . 44 Launcher . | . . . . . . . Special 3 | . . 3 . . . . Kinetic 155 | . 47 21 14 3 . 70 Thermal 47 | . 9 22 13 3 . . Explosive . | . . . . . . . Electromagnetic . | . . . . . . . Robot Hit Streak 14 | . 14 8 5 1 . 10 Robot Miss Streak 4 | . 2 2 2 2 . 4 Penetration Max . | . . . . . . . Secondary Targets . | . . . . . . . Shots Hit Robots 123 | . 38 26 16 2 . 41 Core Hits 52 | . 14 8 8 . . 22 Critical Kills 6 | . . . . . . 6 Critical Parts Destroyed 6 | . . 1 . . . 5 Critical Strikes 14 | . 2 1 . . . 11 Burn 2 | . 2 . . . . . Destroy 12 | . . 1 . . . 11 Melee Attacks . | . . . . . . . Impact . | . . . . . . . Slashing . | . . . . . . . Piercing . | . . . . . . . Sneak Attacks . | . . . . . . . Combat Hostiles . | . . . . . . . Follow-up Attacks . | . . . . . . . Damage Inflicted 1866 | . 445 316 242 40 . 823 Guns 1323 | . 445 316 242 39 . 281 Cannons 542 | . . . . . . 542 Explosions . | . . . . . . . Melee . | . . . . . . . Ramming 1 | . . . . 1 . . Kinetic 1368 | . 322 109 91 23 . 823 Thermal 497 | . 123 207 151 16 . . Explosive . | . . . . . . . Electromagnetic . | . . . . . . . Impact . | . . . . . . . Slashing . | . . . . . . . Piercing . | . . . . . . . Highest Corruption . | . . . . . . . Average Corruption . | . . . . . . . Corruption Purged . | . . . . . . . Corruption Blocked . | . . . . . . . Overload Shots . | . . . . . . . Overflow Damage 11 | . . . . . . 11 Projectiles 11 | . . . . . . 11 Explosions . | . . . . . . . Melee . | . . . . . . . Knockbacks 2 | . . . . . . 2 Impact . | . . . . . . . Kinetic 2 | . . . . . . 2 Secondary . | . . . . . . . Self-Inflicted Damage . | . . . . . . . Shots . | . . . . . . . Rammed . | . . . . . . . Targets Rammed 1 | . . . . 1 . . Kicked 1 | . . . . 1 . . Crushed . | . . . . . . . Highest Temperature 282 | . 81 225 14 . 282 277 Average Temperature 91 | . 45 99 7 . 153 93 Received Heat Transfer 1107 | . 198 279 48 12 . 570 Siege Activations . | . . . . . . . Robots Corrupted . | . . . . . . . Combat Hostiles . | . . . . . . . Parts Fried 1 | . . . . . . 1 Impact Corruptions . | . . . . . . . Robots Melted 1 | . 1 . . . . . Combat Hostiles 1 | . 1 . . . . . Parts Melted 2 | . 1 . . . . 1 Heat Transferred 1296 | . 444 494 321 37 . . Parts Sabotaged . | . . . . . . . Parts Stolen . | . . . . . . . Parts Stripped . | . . . . . . . Power Chain Reactions . | . . . . . . . Alert | -11 -10 -10 -9 -9 -7 -6 ------- Run | Yrd Mat Min Mat Min Zio Pro Peak Influence 246 | . 176 152 246 108 . . Initial 95 | . . 5 51 95 . . Average 71 | . 47 69 126 96 . . Maximum Alert Level 1 | . . . 1 . . . Low Security (%) 96 | 100 100 100 65 100 . . Level 1 3 | . . . 34 . . . Level 2 . | . . . . . . . Level 3 . | . . . . . . . Level 4 . | . . . . . . . Level 5 . | . . . . . . . High Security . | . . . . . . . Max Security . | . . . . . . . Squads Dispatched 2 | . . . 1 . . 1 Investigation . | . . . . . . . Extermination . | . . . . . . . Reinforcement 1 | . . . 1 . . . Assault 1 | . . . . . . 1 Garrison . | . . . . . . . Intercept . | . . . . . . . Searches Triggered . | . . . . . . . Construction Impeded . | . . . . . . . Haulers Reinforced . | . . . . . . . Active Scanning Responses . | . . . . . . . Cargo Convoy Interrupts . | . . . . . . . Stealth | -11 -10 -10 -9 -9 -7 -6 --------- Run | Yrd Mat Min Mat Min Zio Pro Distress Signals 2 | . 1 . 1 . . . Communications Jammed . | . . . . . . . Distress Signals . | . . . . . . . Times Spotted 61 | . 11 8 10 2 . 30 Peak Tracking Total 7 | . 4 2 7 2 . 6 Tactical Retreats 8 | . . . 1 . . 7 Traps | -11 -10 -10 -9 -9 -7 -6 ------- Run | Yrd Mat Min Mat Min Zio Pro Traps Triggered 1 | . 1 . . . . . Indirectly . | . . . . . . . Trap Hack Attempts . | . . . . . . . Triggered . | . . . . . . . Disarmed . | . . . . . . . Reprogrammed . | . . . . . . . Reused . | . . . . . . . Traps Extracted . | . . . . . . . Installed . | . . . . . . . Triggered 1 | . . . . . . 1 Machines | -11 -10 -10 -9 -9 -7 -6 ---------- Run | Yrd Mat Min Mat Min Zio Pro Machines Disabled . | . . . . . . . Max in Single Turn . | . . . . . . . Machines Repaired . | . . . . . . . Machines Dismantled . | . . . . . . . Machines Sabotaged . | . . . . . . . Overloaded Fab Kills . | . . . . . . . Hacking | -11 -10 -10 -9 -9 -7 -6 --------- Run | Yrd Mat Min Mat Min Zio Pro Machines Accessed 7 | . 6 . 1 . . . Terminals 3 | . 3 . . . . . Fabricators . | . . . . . . . Repair Stations 1 | . 1 . . . . . Recycling Units 3 | . 2 . 1 . . . Scanalyzers . | . . . . . . . Garrison Access . | . . . . . . . Total Hacks 18 | . 17 . 1 . . . Successful 12 | . 11 . 1 . . . Failed 6 | . 6 . . . . . Catastrophic 1 | . 1 . . . . . Database Lockouts . | . . . . . . . Manual 6 | . . . 1 . 5 . Terminals 9 | . 9 . . . . . Fabricators . | . . . . . . . Repair Stations 2 | . 2 . . . . . Recycling Units 7 | . 6 . 1 . . . Scanalyzers . | . . . . . . . Garrison Access . | . . . . . . . Terminal Hacks 5 | . 5 . . . . . Robot Analysis 1 | . 1 . . . . . Prototype ID Bank 1 | . 1 . . . . . Locate Traps 1 | . 1 . . . . . Dispatch Records 2 | . 2 . . . . . Fabricator Hacks . | . . . . . . . Repair Station Hacks 2 | . 2 . . . . . Scan Component 1 | . 1 . . . . . Repair 1 | . 1 . . . . . Recycling Unit Hacks 5 | . 4 . 1 . . . Process 1 | . 1 . . . . . Report Inventory 1 | . 1 . . . . . Retrieve Matter 1 | . 1 . . . . . Retrieve Components 2 | . 1 . 1 . . . Scanalyzer . | . . . . . . . Garrison Access Hacks . | . . . . . . . Unauthorized Hacks . | . . . . . . . Terminals . | . . . . . . . Fabricators . | . . . . . . . Repair Stations . | . . . . . . . Recycling Units . | . . . . . . . Scanalyzers . | . . . . . . . Garrison Access . | . . . . . . . Data Cores Recovered . | . . . . . . . Used . | . . . . . . . Hacking Detections 6 | . 5 . 1 . . . Full Trace Events . | . . . . . . . Feedback Events . | . . . . . . . Feedback Blocked . | . . . . . . . Robot Schematics Acquired 3 | . . . . . 3 . Robots Built . | . . . . . . . Authchips . | . . . . . . . Time . | . . . . . . . Total Robot Build Rating . | . . . . . . . Part Schematics Acquired 15 | . . . . . 15 . Parts Built . | . . . . . . . Authchips . | . . . . . . . Time . | . . . . . . . Total Part Build Rating . | . . . . . . . Parts Repaired 1 | . 1 . . . . . Time 26 | . 26 . . . . . Parts Recycled . | . . . . . . . Recycled Matter 1 | . 1 . . . . . Retrieved Matter 1 | . 1 . . . . . Retrieved Components 6 | . . . 6 . . . Parts Scanalyzed . | . . . . . . . Part Schematics Acquired . | . . . . . . . Parts Damaged . | . . . . . . . Bothacking | -11 -10 -10 -9 -9 -7 -6 ------------ Run | Yrd Mat Min Mat Min Zio Pro Used RIF Installer . | . . . . . . . Robots Hacked . | . . . . . . . Non-combat . | . . . . . . . Combat . | . . . . . . . Robot Hacks Applied . | . . . . . . . Relay Couplers Released . | . . . . . . . Fabnet Peak Effective % . | . . . . . . . Robots Rewired . | . . . . . . . Allies Hacked . | . . . . . . . Hacks Repelled . | . . . . . . . Allies | -11 -10 -10 -9 -9 -7 -6 -------- Run | Yrd Mat Min Mat Min Zio Pro Total Allies 10 | . . 3 . 3 4 . Largest Group 5 | . . 3 . 3 5 4 Highest-Rated Group 175 | . . 85 . 40 175 136 Highest-Rated Ally 42 | . . 31 . 16 42 42 Total Orders . | . . . . . . . Ally Attacks 71 | . . 25 . 8 . 38 Total Damage 957 | . . 331 . 82 . 544 Kills 12 | . . 5 . 2 . 5 Allies Corrupted . | . . . . . . . Allies Melted . | . . . . . . . Intel | -11 -10 -10 -9 -9 -7 -6 ------- Run | Yrd Mat Min Mat Min Zio Pro Robot Analysis Total 1 | . 1 . . . . . Derelict Logs Recovered 5 | . . 2 . . 1 2 Drone Launches . | . . . . . . . Drone Recoveries . | . . . . . . . Exploration | -11 -10 -10 -9 -9 -7 -6 ------------- Run | Yrd Mat Min Mat Min Zio Pro Turns Passed 3506 | 53 502 373 145 361 1174 898 Spaces Moved 2636 | 41 328 233 64 278 1000 692 Core 9 | 9 . . . . . . Treads . | . . . . . . . Legs 1172 | . . 60 64 278 439 331 Wheels 1455 | 32 328 173 . . 561 361 Hover . | . . . . . . . Flight . | . . . . . . . Fastest Speed 50 | 50 100 100 120 120 90 90 Average Speed 108 | 89 100 123 129 120 103 107 Slowest Speed 190 | 100 100 190 190 120 190 190 Overloaded Moves . | . . . . . . . Propulsion Burnouts . | . . . . . . . Robots Hopped . | . . . . . . . Cave-ins Triggered . | . . . . . . . Exploration Rate (%) 46 | 3 48 56 9 57 87 68 Regions Visited 6 Branch Regions 4 Pre-discovered Areas 2 | . . 1 . . 1 . Known Exits Taken 1 | . . 1 . . . . Unknown Exits Taken 5 | 1 1 . 1 1 1 . Scrap Searched 5 | . . 1 . 1 3 . Spaces Dug 3 | . . 3 . . . . Terrain Destroyed 21 | . . 3 . . . 18 Melee . | . . . . . . . Projectile 21 | . . 3 . . . 18 AOE . | . . . . . . . Terrain Rammed . | . . . . . . . Walls Destroyed . | . . . . . . . Machines Disabled . | . . . . . . . Actions | -11 -10 -10 -9 -9 -7 -6 --------- Run | Yrd Mat Min Mat Min Zio Pro Total 3104 | 57 452 273 101 299 1145 777 Wait 220 | . 76 6 4 15 95 24 Move 2630 | 40 327 232 63 277 999 692 Hop . | . . . . . . . Pick Up 57 | 10 10 3 9 1 17 7 Fast Attach 2 | . . . . . 2 . Attach 28 | 6 6 1 3 . 6 6 Detach 1 | . 1 . . . . . Swap 24 | 1 2 5 3 1 10 2 Drop 28 | . 2 2 5 1 16 2 Fire 113 | . 28 24 14 3 . 44 Melee . | . . . . . . . Ram . | . . . . . . . Kick 1 | . . . . 1 . . Crush . | . . . . . . . Escape Stasis . | . . . . . . . Rewire . | . . . . . . . Trap . | . . . . . . . Miscellaneous . | . . . . . . . Route ------- -11/Scrapyard -10/Materials -10/Mines -9/Materials -9/Mines (discovered 2 exits: [*Mat] / *Zio) -7/Zion -6/Proximity Caves (discovered 1 exit: Fac) History --------- Turn | Location | Event 2 | -11/Scrapyard | Met Revision 17 20 | -11/Scrapyard | Discovered new exit (range 15) 54 | -11/Scrapyard | Entered Materials 209 | -10/Materials | Repaired Com. Wheel 307 | -10/Materials | Build established: Mutant 548 | -10/Materials | Discovered new exit (range 8) 556 | -10/Materials | Entered Mines 563 | -10/Mines | Core integrity fell below 50% 589 | -10/Mines | Core integrity fell below 20% 670 | -10/Mines | Received a Mining Laser from a helpful Derelict 707 | -10/Mines | Identified exit to Materials 754 | -10/Mines | Learned location of Storage (-9) 929 | -10/Mines | Entered Materials 929 | -9/Materials | Evolved 2 slots: Propulsion x1, Utility x1 996 | -9/Materials | Discovered new exit (range 10) 1074 | -9/Materials | Entered Mines 1098 | -9/Mines | Assisted by bots powering up and referring to "LRC-V3" 1353 | -9/Mines | Discovered new exit (range 7) 1380 | -9/Mines | A Derelict revealed a hidden shortcut to a safe place 1413 | -9/Mines | Found DCF Scrap (13 items) 1435 | -9/Mines | Entered Zion 1435 | -7/Zion | Accompanied by 1 ally 1472 | -7/Zion | Received a visual enhancement algorithm 1729 | -7/Zion | Learned location of 1 exit from Factory 1881 | -7/Zion | Found Prototype Processor 1882 | -7/Zion | Identified Exp. Armor Integrity Analyzer 1886 | -7/Zion | Found Prototype Processor 1887 | -7/Zion | Identified Spectral Analyzer 1891 | -7/Zion | Found Prototype Processor 1892 | -7/Zion | Identified Exp. Melee Analysis Suite 1902 | -7/Zion | Found Exp. Armor Integrity Analyzer 1909 | -7/Zion | Found Prototype Processor 1910 | -7/Zion | Identified Exp. Signal Interpreter 2200 | -7/Zion | Met Imprinter 2219 | -7/Zion | Imprinted 2221 | -7/Zion | Declared Zion's savior 2381 | -7/Zion | Build established: Derelict-Mutant 2565 | -7/Zion | Discovered new exit (range 10) 2609 | -7/Zion | Entered Proximity Caves 2609 | -6/Proximity Caves | Accompanied by 4 allies 2640 | -6/Proximity Caves | Attracted the attention of an 0b10 checkpoint 2882 | -6/Proximity Caves | Learned location of 1 exit from Factory 2886 | -6/Proximity Caves | Lost 3 parts (1n2w) 3066 | -6/Proximity Caves | Core integrity fell below 50% 3246 | -6/Proximity Caves | Identified exit to Factory 3369 | -6/Proximity Caves | Attracted the attention of an 0b10 outpost 3395 | -6/Proximity Caves | Build established: Scavenger-Mutant 3437 | -6/Proximity Caves | Lost 4 parts (2n2w) 3497 | -6/Proximity Caves | Core integrity fell below 20% 3507 | -6/Proximity Caves | Destroyed by H-66 Slayer with Heavy Assault Rifle Last Messages --------------- 03403_ Carbon-fiber Leg destroyed. 03406_ Penetrated by Slug. 03406_ Bore Cannon destroyed. 03454_ C-30 ARC bursts open, deploying its payload. 03454_ G-67 Veteran unfolds itself. 03454_ L-41 Fighter unfolds itself. 03454_ G-50 Soldier unfolds itself. 03454_ L-41 Fighter unfolds itself. 03494_ Penetrated by Slug. 03494_ Sml. Storage Unit destroyed. 03496_ Penetrated by Slug. 03496_ Angular Momentum Engine destroyed. 03498_ Slug penetrates Wall. 03498_ Penetrated by Slug. 03502_ Slug penetrates Wall. 03502_ Penetrated by Slug. 03505_ Aluminum Leg destroyed. 03507_ Slug penetrates Wall. 03507_ Slug penetrates H-66 Slayer. Map ----- +----------------------------------------------------+ | #??###" ###### # #?????????? | | ### #??# "# ######## #?????????? | | ##?# #?### ##????# ##?????????? | | ####??# ### #???## ##??????????? | | #??????# ### #???# #???????????? | | #?????## ##??######???# ##???????????? | | #?????# ##????????????####????????????? | | #????# #### #?????????????????????????????? | | #????#?????# #????????????##???????????????? | | #??????????# ##??????????# #???????????????? | | ###????????# #?????????# #???????????????? | | # #????????# #???###### #????? ?#???????? | | #????????# #### #?### #????? ##??????? | | #????????# #??# ### #?### #??????? | | #?????#### #?## !! ## #??????? | | ###?????# ## ### h ##??????? | | #??????## ## h ????? | | #?????## #### #???????????? | | #??#### ##??## #???????????? | | #??# ##???###### ##???????????? | | #??# ## #???## #????????????? | | #??# ## #?## #????????????? | | #??## ## ## ##????????????? | | #??## #######?????????????? | | #### ##???????????????????? | | @###????????????????????? | | #??????????????????????? | | #### #### ??????????????????????? | | ???# ##??## ?????????????????????? | | ???# #????# ????????????????????? | | ??## ## #???? ????????????????????? | | ?## ###?# ##???? ???????????????????? | | ?# #????#####???? ??????????????????? | | # #?????????????### ### ?????????????????? | | #???????????????# ##??#?????????????????? | | ####### #??????????????? #?????????????????????? | | ???????####???????????????##?????????????????????? | | ?????????????????????????????????????????????????? | | ?????????????????????????????????????????????????? | | ?????????????????????????????????????????????????? | | ?????????????????????????????????????????????????? | | ?????????????????????????????????????????????????? | | ?????????????????????????????????????????????????? | | ?????????????????????????????????????????????????? | | ?????????????????????????????????????????????????? | | ?????????????????????????????????????????????????? | | ?????????????????????????????????????????????????? | | ?????????????????????????????????????????????????? | | ?????????????????????????????????????????????????? | | ?????????????????????????????????????????????????? | +----------------------------------------------------+ Best States ------------- Heat Dissipation 42 Energy Generation 18 Energy Capacity 300 Matter Stores 300 Matter Capacity 300 Sight Range 16 Terrain Scan Density 10 Armor Coverage 150 Utility Shielding 15 Evasion (%) 55 Targeting Accuracy 6 Armor Integrity Analysis 50 Item Schematics ----------------- Fission Core | -7/Zion | Archive Lgt. Fission Core | -7/Zion | Archive Imp. Field Recycling Unit | -7/Zion | Archive Adv. Signal Interpreter | -7/Zion | Archive Gravmag System | -7/Zion | Archive Magnetic Acceleration Cannon | -7/Zion | Archive Transmission Jammer | -7/Zion | Archive Remote Shield | -7/Zion | Archive Arm. Huge Wheel | -7/Zion | Archive Angular Momentum Engine | -7/Zion | Archive Remote Datajack | -7/Zion | Archive Imp. Dynamic Insulation System | -7/Zion | Archive Imp. Remote Datajack | -7/Zion | Archive Spear | -7/Zion | Archive Hvy. Missile Launcher | -7/Zion | Archive Robot Schematics ------------------ B-36 Bruiser | -7/Zion | Archive A-02 Transporter | -7/Zion | Archive B-48 Gladiator | -7/Zion | Archive Fabricated ------------ Nothing Alien Tech Used ----------------- None Achievements -------------- None Challenges ------------ None Game ------ Seed MasterMetaCompressor Manual? 0 Play Time 01:00:30 Cumulative 111.0 hours Start 2024.08.07 @ 22:57:11 End 2024.08.07 @ 23:58:25 Sessions 1 Manual Loads 0 Difficulty Rogue Special Mode None Game No. 110 Rogue 110 Adventurer 0 Explorer 0 Win Type - Total 1 Types 0/0/1/0/0/0/0/0/0 Lore% 26 Gallery% 53 Achievement% 32 Wizard Run 0 Options --------- Layout 1 ASCII 0 Keyboard 0 Movement Mouse Keybinds 0 Fullscreen 2 Font 24/Smallcaps Map View 50x35 Zoom Use 0% Tactical HUD 1 Map Filters NONE Filters NONE Steam 1 RUN: 23a2bb1f-6cd2-432c-a020-565d6a472912